bitfinex-derivatives/quotes_ETHF0:USTF0_20250810
["timestamp","ask_amount","ask_price","bid_price","bid_amount"]
[1754845131834,1.5445,4237.0,4236.9,1.5434]
[1754845134430,0.47196,4237.2,4237.0,1.13948]
[1754845134634,0.47196,4237.2,4237.1,1.5434]
[1754845134635,1.07766,4237.2,4237.1,1.5434]
[1754845135134,2.01646,4237.2,4237.1,1.5434]
[1754845137037,2.01646,4237.2,4237.1,0.8759]
[1754845137241,2.01646,4237.2,4237.1,0.1853]
[1754845137445,2.01646,4237.2,4237.1,0.8467]
[1754845137642,2.01646,4237.2,4237.1,1.1064]
[1754845137941,2.01646,4237.2,4237.1,1.5434]
[1754845139941,2.01646,4237.2,4237.1,0.1853]
[1754845140340,0.8838,4236.5,4236.4,0.882]
[1754845140637,2.29419459,4236.5,4236.4,0.6223]
[1754845140835,2.29419459,4236.5,4236.4,1.5434]
[1754845141140,1.5445,4236.5,4236.4,1.5434]
[1754845143342,2.01653,4236.5,4236.4,0.8759]
[1754845143542,2.01653,4236.5,4236.4,1.5434]
[1754845143745,2.01653,4236.5,4236.4,2.01544]
[1754845143946,2.01653,4236.5,4236.4,1.5434]
[1754845144245,1.5445,4236.5,4236.4,1.5434]
[1754845145646,1.1008,4236.5,4236.4,1.5434]
[1754845145946,1.2812,4236.5,4236.4,1.5434]
[1754845146745,0.6065,4236.5,4236.4,1.5434]
[1754845146945,1.5463,4236.5,4236.4,1.5434]
[1754845148443,1.78544,4236.4,4236.3,0.65115]
[1754845148648,1.5785,4236.4,4236.3,2.03425]
[1754845149850,1.5785,4236.4,4236.3,1.5622]
[1754845153657,1.5785,4236.4,4236.3,1.1085]
[1754845154349,1.5785,4235.9,4235.8,1.2845]
[1754845154553,2.32819459,4235.9,4235.8,0.8907]
[1754845154957,2.32819459,4235.9,4235.8,1.5622]
[1754845155348,1.5785,4235.9,4235.8,1.5622]
[1754845156953,0.9398,4235.8,4235.7,0.47211]
[1754845157158,1.5785,4235.8,4235.7,0.47211]
[1754845157358,1.5785,4235.8,4235.7,2.03431]
[1754845157560,2.05061,4235.8,4235.7,1.5622]
[1754845157756,1.5785,4235.8,4235.7,1.5622]
[1754845158658,2.05062,4235.8,4235.6,0.47213]
[1754845158858,1.5785,4235.6,4235.5,0.90914]
[1754845159260,1.5785,4235.6,4235.5,1.30294]
[1754845159451,0.6387,4235.4,4235.3,0.92896]
[1754845159651,1.5785,4235.4,4235.3,2.03436]
[1754845161850,0.47212,4235.8,4234.9,1.18052]
[1754845161851,0.6747,4235.8,4235.7,1.5622]
[1754845162055,1.5785,4235.8,4235.7,1.5622]
[1754845162557,1.3134,4235.8,4235.7,1.5622]
[1754845162762,0.9147,4235.8,4235.7,1.5622]
[1754845163755,0.3987,4236.0,4235.7,1.5622]
[1754845163756,0.3987,4236.0,4235.8,0.47211]
[1754845163952,1.3134,4236.0,4235.9,1.5622]
[1754845164157,1.5785,4236.0,4235.9,1.5622]
[1754845165558,0.9147,4236.0,4235.9,1.5622]
[1754845165760,0.7343,4236.0,4235.9,1.5622]
[1754845165953,0.74969459,4236.5,4236.1,0.3615]
[1754845166159,2.32819459,4236.5,4236.4,1.5622]
[1754845166455,2.32819459,4236.5,4236.4,2.03424]
[1754845167159,1.5785,4236.5,4236.4,2.03424]
[1754845167954,2.32819459,4236.5,4236.4,1.2909]
[1754845168155,0.6387,4235.7,4235.6,1.75663]
[1754845168365,1.5785,4235.7,4235.6,1.75663]
[1754845168561,0.9147,4235.7,4235.6,1.75663]
[1754845168758,0.9147,4235.7,4235.6,2.03433]
[1754845169658,1.5785,4235.7,4235.6,1.30293]
[1754845169967,1.5785,4235.7,4235.6,2.03433]
[1754845171566,1.5785,4235.7,4235.6,1.48533]
[1754845173067,1.5785,4235.7,4235.6,1.76303]
[1754845173267,1.5785,4235.7,4235.6,2.03433]
[1754845173568,1.5785,4235.7,4235.6,0.65123]
[1754845173863,1.5785,4235.7,4234.8,4.08154]
[1754845173864,0.6387,4235.5,4235.4,0.73005]
[1754845174065,1.5785,4235.5,4235.4,0.90915]
[1754845174668,1.5785,4235.5,4235.4,1.30295]
[1754845174967,1.5785,4235.5,4235.4,2.03435]
[1754845176667,1.5785,4235.5,4235.4,0.47215]
[1754845177068,1.5785,4235.5,4235.4,0.65865]
[1754845177365,1.5785,4235.5,4235.4,2.01385]
[1754845188175,1.5785,4235.5,4235.4,0.47215]
[1754845188478,1.5785,4235.5,4235.4,2.01385]
[1754845191987,1.5358,4236.0,4235.9,2.0138]
[1754845192279,0.4284,4236.0,4235.9,2.0912065]
[1754845192481,0.8756,4236.3,4236.2,1.5417]
[1754845193281,0.6602,4236.6,4236.2,1.6191065]
[1754845193477,0.5967,4236.7,4236.6,0.626]
[1754845193677,0.5967,4236.7,4236.6,1.5417]
[1754845193976,1.5358,4236.7,4236.6,1.5417]
[1754845194180,2.28549459,4236.7,4236.6,1.5417]
[1754845194478,2.28549459,4236.7,4236.6,1.6191065]
[1754845194674,2.28549459,4236.7,4236.6,0.0774065]
[1754845200379,0.9391,4235.8,4235.7,0.65863]
[1754845200581,2.28549459,4235.8,4235.7,0.91293]
[1754845200778,2.28549459,4235.8,4235.7,1.74083]
[1754845200983,2.28549459,4235.8,4235.7,2.01383]
[1754845201482,2.28549459,4235.8,4235.7,0.4408]
[1754845201690,0.55544793,4236.2,4236.1,2.01379]
[1754845202285,21.393,4236.3,4236.1,1.09809]
[1754845202487,2.10090116,4236.2,4236.1,1.09809]
[1754845202983,2.10090116,4236.2,4236.1,2.01379]
[1754845203188,3.32267575,4236.2,4236.1,1.5417]
[1754845203388,1.5358,4236.0,4235.9,2.0138]
[1754845203785,1.5358,4236.0,4235.9,0.7264]
[1754845203990,1.5358,4236.0,4235.8,0.47211]
[1754845204189,1.5358,4235.9,4235.8,1.18591]
[1754845204490,1.5358,4235.9,4235.8,2.01381]
[1754845204687,2.00791,4235.9,4235.8,1.5417]
[1754845204990,1.5358,4235.9,4235.8,1.5417]
[1754845207092,1.10249,4236.1,4236.0,0.8874]
[1754845207286,1.10249,4236.1,4236.0,1.5512]
[1754845207592,1.37529,4236.1,4236.0,1.5512]
[1754845207792,2.02439,4236.1,4236.0,1.5512]
[1754845208091,2.02439,4236.1,4236.0,1.278]
[1754845208291,2.02439,4236.1,4236.0,0.4664]
[1754845210088,1.2979,4236.1,4236.0,1.7501]
[1754845210289,22.6899,4236.1,4236.0,2.0233]
[1754845210493,23.25500116,4236.1,4236.0,2.0233]
[1754845210693,23.50940116,4236.1,4236.0,1.5512]
[1754845212490,22.9443,4236.1,4236.0,1.5512]
[1754845213293,22.97017448,4236.1,4236.0,1.5512]
[1754845214394,23.54207549,4236.1,4236.0,1.5512]
[1754845215193,0.6304,4235.5,4235.3,0.74537]
[1754845215400,1.5523,4235.5,4235.4,0.4664]
[1754845215698,23.69399459,4235.5,4235.4,0.4664]
[1754845216289,23.7265225,4235.5,4235.4,0.4664]
[1754845217401,23.7265225,4235.5,4235.4,0.85]
[1754845217595,23.7265225,4235.5,4235.4,1.5512]
[1754845218795,23.7265225,4235.5,4235.4,2.02335]
[1754845220097,22.9443,4235.5,4235.4,2.02335]
[1754845220403,22.99743764,4235.5,4235.4,2.02335]
[1754845220601,22.34833764,4235.5,4235.4,2.02335]
[1754845221602,22.75139613,4235.5,4235.4,2.02335]
[1754845222798,22.75495582,4235.5,4235.4,2.02335]
[1754845223098,23.00935582,4235.5,4235.4,2.02335]
[1754845228113,21.45705582,4235.5,4235.4,2.02335]
[1754845228412,21.393,4235.7,4235.6,1.93176356]
[1754845228711,0.1789,4235.4,4235.3,0.1862]
[1754845228914,0.1789,4235.4,4235.3,0.4664]
[1754845228915,22.9443,4235.4,4235.3,0.4664]
[1754845229118,22.9443,4235.4,4235.3,1.5512]
[1754845235119,22.97153741,4235.4,4235.3,1.5512]
[1754845235918,0.02723741,4235.4,4235.3,1.5512]
[1754845236116,0.0385452,4235.4,4234.8,1.18054]
[1754845236315,0.0385452,4235.4,4234.5,5.20977723]
[1754845236316,0.9039,4236.3,4236.2,1.08617]
[1754845236521,22.5517,4236.3,4236.2,1.08617]
[1754845236715,22.0199,4236.3,4236.2,2.03667]
[1754845237019,22.2959,4236.3,4236.2,2.03667]
[1754845237221,0.9039,4236.3,4236.2,2.03667]
[1754845237719,1.285,4236.3,4236.2,2.03667]
[1754845238924,22.677,4236.5,4236.4,2.03664]
[1754845239221,22.9328,4236.5,4236.4,2.03664]
[1754845240222,22.9328,4236.5,4236.4,1.5646]
[1754845241926,22.94933317,4236.5,4236.4,1.2945]
[1754845242129,1.55733317,4236.5,4236.4,1.2945]
[1754845242431,22.94733317,4236.5,4236.4,0.8941]
[1754845242623,23.51629578,4236.5,4236.4,0.8941]
[1754845243117,23.53229572,4236.5,4236.4,0.8941]
[1754845245028,23.53229572,4236.5,4236.4,1.5646]
[1754845245327,2.14229572,4236.5,4236.4,1.5646]
[1754845245529,22.96233311,4236.5,4236.4,1.5646]
[1754845245829,23.53129572,4236.5,4236.4,1.5646]
[1754845250025,0.276,4236.4,4236.3,0.47205]
[1754845250231,2.10976261,4236.4,4236.3,0.93885]
[1754845250424,2.10976261,4236.4,4236.3,1.33925]
[1754845250626,2.10976261,4236.4,4236.3,2.03665]
[1754845251223,2.14229572,4236.4,4236.3,2.03665]
[1754845252730,1.57333311,4236.4,4236.3,2.03665]
[1754845254118,22.96033311,4236.4,4236.3,2.03665]
[1754845259732,22.96033311,4236.4,4236.3,1.76655]
[1754845259932,22.96033311,4236.4,4236.3,2.03665]
[1754845260931,21.41853311,4236.4,4236.3,2.03665]
[1754845261435,0.03253311,4236.4,4236.3,2.03665]
[1754845262036,3.11e-06,4236.4,4236.3,2.03665]
[1754845262228,0.2769,4237.3,4237.2,1.5646]
[1754845262537,1.85407398,4237.5,4237.4,1.5646]
[1754845262837,23.49587398,4237.5,4237.4,1.5646]
[1754845263129,23.96779398,4237.5,4237.4,0.4668]
[1754845263336,1.5408,4237.4,4237.3,0.47194]
[1754845263537,2.10987398,4237.4,4237.3,0.47194]
[1754845263834,2.10987398,4237.4,4237.2,0.47195]
[1754845264033,2.29049459,4237.3,4237.2,0.28]
[1754845264235,2.29049459,4237.3,4237.2,1.1373]
[1754845264433,2.29049459,4237.3,4237.2,1.5646]
[1754845265037,1.5408,4237.1,4237.0,1.33917]
[1754845265231,22.9268,4237.1,4237.0,0.4668]
[1754845265536,1.5465,4236.9,4236.8,0.47199]
[1754845265839,1.5465,4236.9,4236.6,0.28]
[1754845265840,1.5465,4236.8,4236.7,0.4458]
[1754845266031,22.9315,4236.8,4236.7,0.8529]
[1754845266232,21.385,4236.8,4236.7,1.5888]
[1754845268441,22.6732,4236.8,4236.7,1.5888]
[1754845268632,22.9315,4236.8,4236.7,1.5888]
[1754845269037,22.6732,4236.8,4236.7,1.5888]
[1754845269239,21.385,4236.8,4236.7,1.5888]
[1754845270240,22.2549,4237.0,4236.9,0.6378]
[1754845270436,22.6722,4237.0,4236.9,1.3146]
[1754845270636,22.6722,4237.0,4236.9,1.5888]
[1754845271036,22.2549,4237.0,4236.9,1.5888]
[1754845272144,22.6722,4237.0,4236.9,1.5888]
[1754845272343,0.2583,4236.9,4236.8,0.6436]
[1754845272542,1.5465,4236.9,4236.8,0.9178]
[1754845273044,1.5465,4236.9,4236.8,1.5946]
[1754845273945,1.5465,4236.9,4236.8,2.0608]
[1754845277552,22.9295,4236.9,4236.8,2.0608]
[1754845280857,1.5465,4236.9,4236.8,2.0608]
[1754845281150,22.9285,4236.9,4236.8,2.0608]
[1754845281958,22.9285,4236.9,4236.7,0.472]
[1754845282254,22.9285,4236.9,4236.1,1.72409]
[1754845282255,1.82949459,4236.8,4236.6,0.47201]
[1754845282451,1.07984,4236.5,4236.4,0.47204]
[1754845282655,23.40054,4236.5,4236.4,0.47204]
[1754845282862,1.5465,4236.0,4235.8,0.47211]
[1754845283048,22.3207,4235.9,4235.4,0.2742]
[1754845283353,1.5465,4235.4,4235.3,0.47216]
[1754845283554,22.9285,4235.4,4235.3,2.06096]
[1754845283746,0.4331,4234.9,4234.8,1.38422]
[1754845283949,0.47212,4235.7,4235.4,0.951]
[1754845284245,1.5465,4235.5,4235.4,1.5888]
[1754845285753,1.82963459,4235.5,4235.3,0.47216]
[1754845285951,1.5465,4235.3,4235.2,0.47217]
[1754845289063,1.0251,4235.0,4234.9,0.64381]
[1754845289247,1.5465,4235.0,4234.9,0.91801]
[1754845289448,1.5465,4235.0,4234.9,1.51141]
[1754845289660,1.5465,4235.0,4234.9,2.06101]
[1754845291456,0.4173,4235.2,4235.0,0.4722]
[1754845291663,21.385,4235.2,4235.1,1.5888]
[1754845291859,1.5465,4235.4,4235.3,1.5888]
[1754845292454,21.385,4235.5,4235.4,1.10996]
[1754845292660,21.6491,4235.9,4235.8,1.10991]
[1754845292862,22.6742,4235.9,4235.8,2.06091]
[1754845293162,21.386,4235.9,4235.8,2.06091]
[1754845293562,22.2619,4236.3,4236.2,1.10987]
[1754845293753,22.9375,4236.3,4236.2,2.06087]
[1754845295860,0.27,4236.5,4236.4,0.73334]
[1754845296065,22.9571,4236.5,4236.4,0.438]
[1754845296364,22.9571,4236.5,4236.3,0.47205]
[1754845296665,1.5671,4236.4,4236.3,0.47205]
[1754845296956,1.5671,4236.4,4236.3,2.01805]
[1754845299759,2.31679459,4236.8,4236.7,0.91001]
[1754845300063,24.17379459,4236.8,4236.7,0.91001]
[1754845300260,23.70179459,4236.8,4236.7,0.64871]
[1754845300455,24.17380459,4236.8,4236.6,0.47202]
[1754845300762,1.5671,4236.7,4236.6,0.47202]
[1754845301360,0.9614,4236.6,4236.5,0.47202]
[1754845301565,1.5671,4236.6,4236.5,0.47202]
[1754845302365,1.5671,4236.6,4236.5,0.73332]
[1754845302659,1.5671,4236.6,4236.5,2.01802]
[1754845304666,1.2971,4236.6,4236.5,2.01802]
[1754845305268,1.5671,4236.6,4236.5,2.01802]
[1754845307770,1.76233,4236.5,4236.4,0.47204]
[1754845307967,22.9521,4236.5,4236.4,0.47204]
[1754845308167,22.9521,4236.5,4236.4,0.64874]
[1754845308368,22.9521,4236.5,4236.4,0.91004]
[1754845308571,22.9521,4236.5,4236.4,0.47204]
[1754845308758,22.9521,4236.5,4236.3,0.47205]
[1754845308759,1.07775,4236.4,4236.3,0.47205]
[1754845308964,2.78884459,4236.4,4236.3,0.73335]
[1754845309370,2.78884459,4236.4,4236.3,0.2613]
[1754845309671,1.5671,4236.2,4236.1,0.47207]
[1754845309868,22.9511,4236.2,4236.1,1.34437]
[1754845310068,22.9511,4236.2,4236.1,2.01807]
[1754845312072,22.9511,4236.2,4236.1,1.2804]
[1754845312271,2.03918,4236.1,4236.0,0.47208]
[1754845313062,1.5671,4236.1,4236.0,0.47208]
[1754845313769,0.2768,4236.0,4235.4,0.2656]
[1754845313968,1.35539459,4235.5,4235.4,2.01816]
[1754845314164,23.70579459,4235.5,4235.4,2.01816]
[1754845315369,23.70579459,4235.5,4235.4,1.57696]
[1754845316169,23.70579459,4235.5,4235.4,1.84256]
[1754845316870,23.70579459,4235.5,4235.4,2.01816]
[1754845318778,22.9561,4235.5,4235.4,2.01816]
[1754845320271,21.389,4235.8,4235.7,2.01812]
[1754845320576,1.5671,4236.3,4236.2,1.546]
[1754845320777,22.9601,4236.3,4236.2,1.546]
[1754845320973,22.56710079,4236.3,4236.2,1.546]
[1754845321178,21.96140079,4236.3,4236.2,1.546]
[1754845321574,21.6698,4236.3,4236.2,1.546]
[1754845321780,22.0844,4236.3,4236.2,1.546]
[1754845322081,22.6901,4236.3,4236.2,1.546]
[1754845322281,22.9601,4236.3,4236.2,1.546]
[1754845322778,0.47209,4236.1,4235.9,0.47209]
[1754845322980,22.2755,4236.0,4235.9,1.08309]
[1754845323178,21.8217,4236.0,4235.9,2.01809]
[1754845323680,21.393,4236.0,4235.9,2.01809]
[1754845324386,22.6901,4236.0,4235.9,2.01809]
[1754845324676,22.9601,4236.0,4235.9,2.01809]
[1754845328979,22.9601,4236.0,4235.9,0.47209]
[1754845329380,22.9601,4236.0,4235.9,0.92189]
[1754845329580,22.9601,4236.0,4235.9,1.33859]
[1754845329776,1.525,4235.5,4235.4,2.06326]
[1754845330875,1.525,4235.5,4235.4,1.78476]
[1754845331584,1.525,4235.5,4235.4,2.06326]
[1754845333782,1.525,4235.5,4235.4,1.78476]
[1754845335191,1.525,4235.5,4235.4,2.06326]
[1754845336193,1.525,4235.5,4235.4,1.19726]
[1754845336395,1.525,4235.5,4235.4,0.47216]
[1754845336684,1.525,4235.2,4235.1,0.92199]
[1754845336994,1.525,4234.9,4234.8,0.65192]
[1754845337191,22.917,4234.9,4234.8,0.65192]
[1754845337589,22.917,4234.9,4234.8,0.1797]
[1754845337787,0.9132,4234.8,4234.7,0.47223]
[1754845338098,1.525,4234.3,4234.2,1.79329]
[1754845338395,23.66669459,4234.3,4234.2,2.06339]
[1754845341294,23.66669459,4234.3,4234.2,1.78489]
[1754845341890,23.66669459,4234.3,4234.2,2.06339]
[1754845343389,22.917,4234.3,4234.2,2.06339]
[1754845344805,21.392,4234.3,4234.2,2.06339]
[1754845345898,22.6587,4234.3,4234.2,2.06339]
[1754845346197,22.917,4234.3,4234.2,2.06339]
[1754845347098,22.6587,4234.3,4234.2,2.06339]
[1754845348894,22.917,4234.3,4234.2,2.06339]
[1754845349903,23.66669459,4234.3,4234.2,1.09809]
[1754845350207,23.66669459,4234.3,4234.2,2.06339]
[1754845353802,23.66669459,4234.3,4234.2,1.78489]
[1754845355206,23.66669459,4234.3,4234.2,0.92209]
[1754845355407,1.5358,4233.9,4233.8,0.4498]
[1754845355608,23.67849459,4233.9,4233.8,0.4498]
[1754845355806,23.67849459,4233.9,4233.8,0.8652]
[1754845356008,23.67849459,4233.9,4233.8,1.579]
[1754845356204,23.67849459,4233.9,4233.8,2.05134]
[1754845357504,23.40069459,4233.9,4233.8,0.1797]
[1754845357708,1.07433,4233.8,4233.7,0.47234]
[1754845357908,1.99833,4233.8,4233.7,0.74774]
[1754845358109,1.526,4233.8,4233.7,0.74774]
[1754845358409,1.526,4233.8,4233.7,1.34314]
[1754845358614,1.526,4233.8,4233.7,1.78504]
[1754845358806,1.526,4233.8,4233.7,2.05694]
[1754845362714,1.526,4233.8,4233.7,0.65235]
[1754845363110,1.526,4233.8,4233.7,1.34315]
[1754845363303,1.526,4233.8,4233.7,2.05695]
[1754845366810,1.526,4233.8,4233.7,0.4554]
[1754845367209,1.07435,4233.7,4233.6,0.47235]
[1754845367410,1.526,4233.5,4233.4,0.47237]
[1754845367606,22.921,4233.5,4233.4,2.05697]
[1754845368211,22.6432,4233.5,4233.4,2.05697]
[1754845369207,22.921,4233.5,4233.4,2.05697]
[1754845371816,23.67069459,4233.5,4233.4,0.47237]
[1754845372115,24.14306459,4233.5,4233.4,0.47237]
[1754845372312,24.14306459,4233.5,4233.3,0.47238]
[1754845372313,1.526,4233.4,4233.3,0.47238]
[1754845372504,1.526,4233.4,4233.3,0.74778]
[1754845372707,1.526,4233.4,4233.3,1.61508]
[1754845372913,1.526,4233.4,4233.3,2.05698]
[1754845373817,1.526,4233.4,4233.3,1.5846]
[1754845378823,1.18078,4234.1,4233.7,1.78154]
[1754845378824,1.526,4233.8,4233.7,1.78154]
[1754845379119,34.025,4234.8,4233.7,0.6873]
[1754845379120,0.171,4234.2,4233.7,0.6873]
[1754845379319,0.171,4234.2,4233.4,1.18094]
[1754845379320,1.526,4234.2,4234.1,0.6219]
[1754845379516,22.923,4234.2,4234.1,1.5846]
[1754845379715,23.4917244,4234.2,4234.1,1.5846]
[1754845380320,22.5677244,4234.2,4234.1,1.5846]
[1754845380519,21.397,4234.2,4234.1,1.5846]
[1754845381122,22.6452,4234.2,4234.1,1.5846]
[1754845381722,23.67269459,4234.2,4234.1,1.5846]
[1754845381923,23.67269459,4234.2,4234.1,0.8973]
[1754845382525,1.526,4233.8,4233.7,0.47234]
[1754845382827,23.67169459,4233.8,4233.7,0.92774]
[1754845383129,23.67169459,4233.8,4233.7,1.61504]
[1754845383320,23.67169459,4233.8,4233.7,2.05694]
[1754845383628,23.67169459,4233.8,4233.7,1.78504]
[1754845383826,23.67169459,4233.8,4233.7,1.3127]
[1754845384026,1.1402,4233.6,4233.5,0.92777]
[1754845384222,1.526,4233.5,4233.4,0.47237]
[1754845384551,1.526,4233.5,4233.4,1.34317]
[1754845384724,1.526,4233.5,4233.4,2.05697]
[1754845385529,1.99837,4233.5,4233.4,1.5846]
[1754845386027,1.526,4233.5,4233.4,1.5846]
[1754845386815,0.74969459,4233.8,4233.7,0.47235]
[1754845387023,0.4406,4234.0,4233.9,0.91272]
[1754845387224,22.9281,4234.0,4233.9,1.99452]
[1754845387523,23.49741661,4234.0,4233.9,1.99452]
[1754845387718,2.10141661,4234.0,4233.9,1.99452]
[1754845387919,22.014,4234.0,4233.9,1.99452]
[1754845388123,23.22661661,4234.0,4233.9,1.99452]
[1754845388433,22.84411661,4234.0,4233.9,1.99452]
[1754845388630,23.22661661,4234.0,4233.9,1.99452]
[1754845388926,0.2608,4234.4,4234.3,0.47228]
[1754845389127,22.6573,4234.4,4234.3,1.99448]
[1754845389327,23.22661035,4234.4,4234.3,1.99448]
[1754845389629,23.49741035,4234.4,4234.3,1.99448]
[1754845389831,0.56931035,4234.4,4234.3,1.99448]
[1754845390036,21.396,4234.4,4234.3,1.99448]
[1754845390229,21.96531035,4234.4,4234.3,1.99448]
[1754845390430,21.396,4234.4,4234.3,1.99448]
[1754845391622,0.74969459,4235.0,4234.9,0.4722]
[1754845391828,1.5321,4234.0,4233.9,1.99452]
[1754845392134,22.6563,4234.2,4234.1,1.9945]
[1754845393035,22.9271,4234.2,4234.1,1.9945]
[1754845396136,22.9271,4234.2,4234.1,1.7336]
[1754845396325,22.9271,4234.2,4234.1,1.9945]
[1754845397053,1.5321,4233.7,4233.6,1.99456]
[1754845397242,22.9311,4233.7,4233.6,1.99456]
[1754845397737,21.8396,4233.7,4233.6,1.99456]
[1754845397925,21.399,4233.7,4233.6,1.99456]
[1754845398631,21.6598,4233.7,4233.6,1.99456]
[1754845398832,22.0423,4233.7,4233.6,1.99456]
[1754845399038,22.2197,4233.7,4233.6,1.99456]
[1754845399239,22.6603,4233.7,4233.6,1.99456]
[1754845400740,22.69283102,4233.7,4233.6,1.99456]
[1754845401443,22.96363102,4233.7,4233.6,1.99456]
[1754845407446,22.99615893,4233.7,4233.6,1.99456]
[1754845408745,22.99615893,4233.7,4233.2,1.181]
[1754845408746,1.5321,4233.6,4233.5,0.47237]
[1754845409243,1.5321,4233.6,4233.5,1.29327]
[1754845409544,1.59715893,4233.6,4233.5,1.99457]
[1754845409945,22.99215893,4233.6,4233.5,1.99457]
[1754845410542,21.46005893,4233.6,4233.5,1.99457]
[1754845410742,0.06505893,4233.6,4233.5,1.99457]
[1754845411841,0.618,4234.8,4234.7,0.47223]
[1754845412040,22.013,4234.8,4234.7,1.99443]
[1754845412343,21.395,4234.8,4234.7,1.99443]
[1754845412653,1.5321,4235.5,4235.4,1.99436]
[1754845412850,0.4406,4235.5,4235.4,1.99436]
[1754845413040,1.5321,4236.3,4236.2,1.17337]
[1754845413349,0.1708,4236.3,4236.2,1.34397]
[1754845413549,1.5321,4236.8,4236.7,1.34391]
[1754845413765,0.618,4236.8,4236.7,1.99421]
[1754845414049,21.455,4236.9,4236.7,1.08301]
[1754845414248,21.455,4236.9,4236.8,1.5222]
[1754845414551,22.9871,4236.9,4236.4,0.85654]
[1754845414752,22.9871,4236.9,4236.4,1.99424]
[1754845414753,1.2613,4236.5,4236.4,1.99424]
[1754845414946,21.455,4236.9,4236.8,1.9942]
[1754845415447,22.073,4236.9,4236.8,1.9942]
[1754845415651,22.7515,4236.9,4236.8,1.9942]
[1754845415951,23.024,4236.9,4236.8,1.2613]
[1754845416251,23.024,4236.9,4236.8,1.5312]
[1754845416447,23.024,4236.9,4236.8,1.2613]
[1754845416749,1.5558,4236.8,4236.7,2.04701]
[1754845417747,1.5558,4236.8,4236.7,1.36331]
[1754845417947,1.5558,4236.8,4236.7,2.04701]
[1754845419051,0.6785,4236.8,4235.1,1.18046]
[1754845419253,1.88149459,4235.9,4235.8,1.77721]
[1754845419454,23.34449459,4235.9,4235.8,1.77721]
[1754845419653,22.82889459,4235.9,4235.8,1.77721]
[1754845419855,23.59779459,4235.9,4235.8,1.77721]
[1754845420155,22.8481,4235.9,4235.8,1.3051]
[1754845420350,0.6162,4235.9,4235.8,1.3051]
[1754845420544,21.8135,4235.9,4235.8,1.3051]
[1754845420746,22.8471,4235.9,4235.8,1.3051]
[1754845423156,0.7803,4235.8,4235.0,0.2699]
[1754845423358,0.2647,4235.3,4235.0,2.0472]
[1754845423553,21.47,4235.2,4235.1,1.575]
[1754845423754,22.8551,4235.2,4235.1,1.575]
[1754845424187,22.0862,4235.2,4235.1,1.575]
[1754845424559,22.5826,4235.2,4235.1,1.575]
[1754845424764,22.8551,4235.2,4235.1,1.575]
[1754845425962,22.0862,4235.2,4235.1,1.575]
[1754845426658,21.8215,4235.2,4235.1,1.575]
[1754845427965,0.3515,4235.2,4235.1,1.575]
[1754845428369,1.3851,4235.2,4235.1,1.575]
[1754845429462,0.8695,4235.7,4235.6,0.6326]
[1754845429770,22.8491,4235.7,4235.6,1.575]
[1754845430872,22.8491,4235.7,4235.6,1.3051]
[1754845431064,22.8491,4235.7,4235.5,0.47214]
[1754845431261,0.7803,4235.6,4235.5,0.47214]
[1754845431466,1.3851,4235.6,4235.5,0.92164]
[1754845431668,1.3851,4235.6,4235.5,2.04714]
[1754845433582,1.3851,4235.6,4235.5,1.77724]
[1754845434368,1.3851,4235.6,4235.5,1.33544]
[1754845434571,1.3851,4235.6,4235.5,0.47214]
[1754845435563,1.1126,4235.3,4235.2,0.47218]
[1754845435764,1.1126,4234.7,4234.6,2.04725]
[1754845435969,22.8411,4234.7,4234.6,2.04725]
[1754845436168,22.8411,4234.7,4234.6,0.92175]
[1754845436762,22.8411,4234.7,4234.6,1.59425]
[1754845437366,22.8411,4234.7,4234.6,1.77735]
[1754845438973,22.8411,4234.7,4234.6,2.03305029]
[1754845439372,22.8411,4234.7,4234.6,2.30295029]
[1754845440464,1.3851,4234.7,4234.6,2.30295029]
[1754845440666,22.8461,4234.7,4234.6,2.30295029]
[1754845449281,0.74993664,4234.8,4234.6,2.30295029]
[1754845449486,0.6251,4235.2,4235.1,1.573]
[1754845449784,22.0721,4235.2,4235.1,1.573]
[1754845449982,1.36883664,4235.8,4235.7,0.4389]
[1754845450178,22.81783664,4235.8,4235.7,1.573]
[1754845450674,23.58553664,4235.8,4235.7,1.573]
[1754845450872,23.58553664,4235.8,4235.7,1.3106]
[1754845451080,23.58553664,4235.8,4235.7,0.51520029]
[1754845451980,23.58553664,4235.8,4234.7,0.594]
[1754845451981,0.3631,4234.8,4234.7,0.594]
[1754845452179,21.8131,4234.8,4234.7,2.04523]
[1754845452378,1.11303664,4235.0,4234.9,2.04521]
[1754845452577,22.56303664,4235.0,4234.9,2.04521]
[1754845452778,0.262,4235.2,4235.1,0.47219]
[1754845452980,0.5057,4235.3,4234.8,1.18056]
[1754845452981,1.19123664,4235.4,4235.3,0.6205]
[1754845453181,22.82903664,4235.4,4235.3,1.573]
[1754845453583,23.33473664,4235.4,4235.3,1.573]
[1754845455386,23.59053664,4235.4,4235.3,1.573]
[1754845456787,1.51272838,4236.9,4236.8,0.472]
[1754845456999,1.5308,4236.9,4236.8,2.045]
[1754845458392,1.2686,4236.9,4236.8,2.045]
[1754845458894,1.5308,4236.9,4236.8,2.045]
[1754845459393,2.28073664,4236.9,4236.8,2.045]
[1754845460098,2.28073664,4236.9,4236.8,0.472]
[1754845460897,2.28073664,4236.9,4236.8,0.9109]
[1754845461091,2.28073664,4236.9,4236.8,2.045]
[1754845461695,2.28073664,4237.3,4237.2,0.92906]
[1754845461899,23.79973664,4237.3,4237.2,1.34146]